lending/lending_fUSD_20240621
["ID","MTS","AMOUNT","RATE_DAILY","PERIOD"]
[330077162,1718989119379,-948.77,0.00022191,4]
[330077163,1718989119423,-2054.16,0.00022191,4]
[330077164,1718989119466,-1141.26,0.00022191,4]
[330077165,1718989119508,-953.06,0.00022191,4]
[330077166,1718989119554,-500.0,0.00022191,4]
[330077167,1718989119596,-500.0,0.00022191,4]
[330077168,1718989119637,-500.0,0.00022191,4]
[330077169,1718989119685,-1511.18,0.00022191,4]
[330077170,1718989119739,-1244.28,0.00022191,4]
[330077171,1718989119791,-576.67,0.00022191,4]
[330077172,1718989119843,-1743.39,0.00022191,4]
[330077173,1718989119887,-2173.9,0.00022191,4]
[330077174,1718989119930,-540.71,0.00022191,4]
[330077175,1718989119973,-948.86,0.00022191,4]
[330077176,1718989120013,-500.0,0.00022191,4]
[330077177,1718989120054,-500.0,0.00022191,4]
[330077178,1718989120095,-500.0,0.00022191,4]
[330077179,1718989120136,-1674.61,0.00022191,4]
[330077180,1718989120174,-669.81,0.00022191,4]
[330077181,1718989120215,-500.0,0.00022191,4]
[330077182,1718989120256,-500.0,0.00022191,4]
[330077183,1718989120297,-200.0,0.00022191,4]
[330077184,1718989120335,-805.69,0.00022191,4]
[330077185,1718989120375,-500.0,0.00022191,4]
[330077186,1718989120413,-1406.58,0.00022191,4]
[330077187,1718989120456,-500.0,0.00022191,4]
[330077188,1718989120498,-712.34,0.00022191,4]
[330077189,1718989120545,-714.53,0.00022191,4]
[330077190,1718989120585,-1080.92,0.00022191,4]
[330077191,1718989120627,-717.33,0.00022191,4]
[330077192,1718989120667,-500.0,0.00022191,4]
[330077193,1718989120708,-1926.29,0.00022191,4]
[330077194,1718989120749,-973.55,0.00022191,4]
[330077195,1718989120789,-612.67980735,0.00022191,4]
[330077196,1718989120830,-500.0,0.00022191,4]
[330077197,1718989120873,-826.02,0.00022191,4]
[330077198,1718989120914,-500.0,0.00022191,4]
[330077199,1718989120961,-529.09,0.00022191,4]
[330077200,1718989121003,-500.0,0.00022191,4]
[330077201,1718989121046,-586.43,0.00022191,4]
[330077202,1718989121086,-557.92,0.00022191,4]
[330077203,1718989121126,-2232.82,0.00022191,4]
[330077204,1718989121165,-500.0,0.00022191,4]
[330077205,1718989121207,-169.48516651,0.00022191,2]
[330077206,1718989121255,-500.0,0.00022191,4]
[330077207,1718989121295,-974.98,0.00022191,4]
[330077208,1718989121337,-500.0,0.00022191,4]
[330077209,1718989121382,-500.0,0.00022191,4]
[330077210,1718989121424,-500.0,0.00022191,4]
[330077211,1718989121466,-673.14,0.00022191,4]
[330077212,1718989121508,-595.1,0.00022191,4]
[330077213,1718989121548,-500.0,0.00022191,4]
[330077214,1718989121589,-500.0,0.00022191,4]
[330077215,1718989121635,-842.73,0.00022191,4]
[330077216,1718989121677,-500.0,0.00022191,4]
[330077217,1718989121719,-500.0,0.00022191,4]
[330077218,1718989121760,-500.0,0.00022191,4]
[330077219,1718989121798,-1273.54,0.00022191,4]
[330077220,1718989121844,-529.30004876,0.00022191,4]
[330077221,1718989121885,-511.16,0.00022191,4]
[330077222,1718989121923,-500.0,0.00022191,8]
[330077223,1718989121964,-875.9,0.00022191,4]
[330077224,1718989122003,-772.24,0.00022191,4]
[330077225,1718989122043,-500.0,0.00022191,4]
[330077226,1718989122083,-1837.22,0.00022191,4]
[330077227,1718989122122,-656.6,0.00022191,4]
[330077228,1718989122160,-1557.92,0.00022191,4]
[330077229,1718989122199,-651.56,0.00022191,4]
[330077230,1718989122237,-500.0,0.00022191,4]
[330077231,1718989122275,-500.0,0.00022191,4]
[330077232,1718989122313,-9869.36461022,0.00022191,2]
[330077233,1718989122351,-590.21,0.00022191,4]
[330077234,1718989122386,-725.12,0.00022191,4]
[330077235,1718989122424,-568.75,0.00022191,4]
[330077236,1718989122462,-1561.0,0.00022191,4]
[330077237,1718989122499,-897.44,0.00022191,4]
[330077238,1718989122535,-500.0,0.00022191,4]
[330077239,1718989122572,-768.92,0.00022191,4]
[330077240,1718989122610,-1147.1,0.00022191,4]
[330077241,1718989122651,-643.42,0.00022191,4]
[330077242,1718989122687,-500.0,0.00022191,4]
[330077243,1718989122725,-767.44,0.00022191,4]
[330077244,1718989122763,-675.53,0.00022191,4]
[330077245,1718989122803,-561.39,0.00022191,4]
[330077246,1718989122844,-845.8,0.00022191,4]
[330077247,1718989122882,-500.0,0.00022191,4]
[330077248,1718989122924,-1474.02,0.00022191,4]
[330077249,1718989122964,-500.0,0.00022191,4]
[330077250,1718989123001,-627.86,0.00022191,4]
[330077251,1718989123040,-500.0,0.00022191,4]
[330077252,1718989123078,-500.0,0.00022191,4]
[330077253,1718989123119,-1168.38,0.00022191,4]
[330077254,1718989123155,-500.0,0.00022191,4]
[330077255,1718989123193,-500.0,0.00022191,4]
[330077256,1718989123455,-500.0,0.00022191,4]
[330077257,1718989123505,-561.23,0.00022191,4]
[330077258,1718989123549,-1099.21,0.00022191,4]
[330077259,1718989123589,-500.0,0.00022191,4]
[330077260,1718989123628,-1465.54,0.00022191,4]
[330077261,1718989123668,-500.0,0.00022191,4]
[330077262,1718989123708,-1028.37,0.00022191,4]
[330077263,1718989123748,-747.14,0.00022191,4]
[330077264,1718989123787,-500.0,0.00022191,4]
[330077265,1718989123830,-1226.74,0.00022191,4]
[330077266,1718989123875,-516.53,0.00022191,4]
[330077267,1718989123920,-500.0,0.00022191,4]
[330077268,1718989123959,-500.0,0.00022191,4]
[330077269,1718989123999,-500.0,0.00022191,4]
[330077270,1718989124039,-506.5952966,0.00022191,4]
[330077271,1718989124077,-500.0,0.00022191,4]
[330077272,1718989124118,-591.78,0.00022191,4]
[330077273,1718989124166,-782.24,0.00022191,4]
[330077274,1718989124207,-520.62,0.00022191,4]
[330077275,1718989124248,-1310.65,0.00022191,4]
[330077276,1718989124288,-541.91,0.00022191,4]
[330077277,1718989124329,-500.0,0.00022191,4]
[330077278,1718989124373,-553.03,0.00022191,4]
[330077279,1718989124415,-724.51,0.00022191,4]
[330077280,1718989124458,-609.9,0.00022191,4]
[330077281,1718989124499,-500.0,0.00022191,4]
[330077282,1718989124541,-723.46,0.00022191,4]
[330077283,1718989124583,-500.0,0.00022191,4]
[330077284,1718989124623,-576.04,0.00022191,4]
[330077285,1718989124667,-584.45,0.00022191,4]
[330077286,1718989124710,-2385.93,0.00022191,4]
[330077287,1718989124752,-500.0,0.00022191,4]
[330077288,1718989124795,-656.02,0.00022191,4]
[330077289,1718989124841,-541.65,0.00022191,4]
[330077290,1718989124884,-500.0,0.00022191,4]
[330077291,1718989124926,-1109.12,0.00022191,4]
[330077292,1718989124968,-3795.07,0.00022191,4]
[330077293,1718989125011,-500.0,0.00022191,4]
[330077294,1718989125053,-746.33,0.00022191,4]
[330077295,1718989125095,-500.0,0.00022191,4]
[330077296,1718989125135,-1974.58,0.00022191,4]
[330077297,1718989125175,-500.0,0.00022191,4]
[330077298,1718989125215,-500.0,0.00022191,4]
[330077299,1718989125257,-891.41,0.00022191,4]
[330077300,1718989125297,-1854.83,0.00022191,4]
[330077301,1718989125341,-872.07,0.00022191,4]
[330077302,1718989125385,-1350.6,0.00022191,4]
[330077303,1718989125428,-638.57,0.00022191,4]
[330077304,1718989125471,-1380.76,0.00022191,4]
[330077305,1718989125514,-3159.84,0.00022191,4]
[330077306,1718989125555,-1144.85,0.00022191,4]
[330077307,1718989125595,-3867.95,0.00022191,4]
[330077308,1718989125633,-500.0,0.00022191,4]
[330077309,1718989125673,-663.89,0.00022191,4]
[330077310,1718989125713,-500.0,0.00022191,4]
[330077311,1718989125755,-368.76511093,0.00022191,4]
[330077312,1718989125794,-500.0,0.00022191,4]
[330077313,1718989125834,-521.31,0.00022191,4]
[330077314,1718989125879,-784.12,0.00022191,4]
[330077315,1718989125926,-991.22,0.00022191,4]
[330077316,1718989125968,-616.1,0.00022191,4]
[330077317,1718989126009,-500.0,0.00022191,4]
[330077318,1718989126053,-500.0,0.00022191,4]
[330077319,1718989126097,-500.0,0.00022191,4]
[330077320,1718989126138,-1045.54,0.00022191,4]
[330077321,1718989126180,-2311.03,0.00022191,4]
[330077322,1718989126222,-2210.25,0.00022191,4]
[330077323,1718989126263,-500.0,0.00022191,4]
[330077324,1718989126305,-778.29,0.00022191,4]
[330077325,1718989126345,-500.0,0.00022191,4]
[330077326,1718989126387,-566.67,0.00022191,4]
[330077327,1718989126428,-1007.76,0.00022191,4]
[330077328,1718989126469,-500.0,0.00022191,4]
[330077329,1718989126511,-552.43,0.00022191,4]
[330077330,1718989126551,-1209.95,0.00022191,4]
[330077331,1718989126591,-1062.91,0.00022191,4]
[330077332,1718989126632,-904.29,0.00022191,4]
[330077333,1718989126671,-7542.58,0.00022191,4]
[330077334,1718989126712,-5519.13,0.00022191,4]
[330077335,1718989126753,-1069.16,0.00022191,4]
[330077336,1718989126794,-500.0,0.00022191,4]
[330077337,1718989126835,-571.9,0.00022191,4]
[330077338,1718989126887,-1015.69,0.00022191,4]
[330077339,1718989126931,-500.0,0.00022191,4]
[330077340,1718989126972,-6399.99,0.00022191,4]
[330077341,1718989127012,-1025.68,0.00022191,4]
[330077342,1718989127054,-500.0,0.00022191,4]
[330077343,1718989127096,-500.0,0.00022191,4]
[330077344,1718989127135,-2983.13,0.00022191,4]
[330077345,1718989127176,-500.0,0.00022191,4]
[330077346,1718989127218,-1651.11,0.00022191,4]
[330077347,1718989127258,-1723.58,0.00022191,4]
[330077348,1718989127297,-1326.76,0.00022191,4]
[330077349,1718989127340,-10836.48,0.00022191,4]
[330077350,1718989127381,-500.0,0.00022191,4]
[330077351,1718989127422,-1821.6,0.00022191,4]
[330077352,1718989127459,-12739.48,0.00022191,4]
[330077353,1718989127496,-4285.9,0.00022191,4]
[330077354,1718989127535,-500.0,0.00022191,4]
[330077355,1718989127574,-883.46,0.00022191,4]
[330077356,1718989127613,-972.31,0.00022191,4]
[330077357,1718989127651,-589.13,0.00022191,4]
[330077358,1718989127690,-500.0,0.00022191,4]
[330077359,1718989127731,-500.0,0.00022191,4]
[330077360,1718989127772,-1456.87,0.00022191,4]
[330077361,1718989127809,-1799.97,0.00022191,4]
[330077362,1718989127850,-771.36,0.00022191,4]
[330077363,1718989127890,-1118.96,0.00022191,4]
[330077364,1718989127930,-1698.63,0.00022191,4]
[330077365,1718989127970,-500.0,0.00022191,4]
[330077366,1718989128012,-5941.9,0.00022191,4]
[330077367,1718989128056,-10944.81,0.00022191,4]
[330077368,1718989128096,-500.0,0.00022191,4]
[330077369,1718989128135,-1729.62,0.00022191,4]
[330077370,1718989128177,-500.0,0.00022191,4]
[330077371,1718989128218,-500.0,0.00022191,4]
[330077372,1718989128486,-2700.77,0.00022191,4]
[330077373,1718989128530,-4987.88,0.00022191,4]
[330077374,1718989128570,-500.0,0.00022191,2]
[330077375,1718989128610,-500.0,0.00022191,4]
[330077376,1718989128657,-1392.67,0.00022191,4]
[330077377,1718989128699,-877.61,0.00022191,4]
[330077378,1718989128738,-218.48502641,0.00022191,4]
[330077379,1718989128779,-500.0,0.00022191,4]
[330077380,1718989128821,-500.0,0.00022191,4]
[330077381,1718989128863,-500.0,0.00022191,4]
[330077382,1718989128901,-500.0,0.00022191,4]
[330077383,1718989128940,-500.0,0.00022191,4]
[330077384,1718989128983,-1043.77,0.00022191,4]
[330077385,1718989129025,-629.96,0.00022191,4]
[330077386,1718989129063,-3830.03,0.00022191,4]
[330077387,1718989129103,-964.86,0.00022191,4]
[330077388,1718989129144,-500.0,0.00022191,4]
[330077389,1718989129185,-40490.59,0.00022191,4]
[330077390,1718989129228,-500.0,0.00022191,4]
[330077391,1718989129268,-500.0,0.00022191,4]
[330077392,1718989129309,-3619.34,0.00022191,4]
[330077393,1718989129358,-500.0,0.00022191,4]
[330077394,1718989129403,-500.0,0.00022191,4]
[330077395,1718989129447,-500.0,0.00022191,4]
[330077396,1718989129498,-500.0,0.00022191,4]
[330077397,1718989129544,-2068.44,0.00022191,4]
[330077398,1718989129588,-626.98,0.00022191,4]
[330077399,1718989129634,-580.47214133,0.00022191,4]
[330077400,1718989129679,-836.43,0.00022191,4]
[330077401,1718989129727,-2608.58,0.00022191,4]
[330077402,1718989129773,-547.29,0.00022191,4]
[330077403,1718989129819,-1430.67,0.00022191,4]
[330077404,1718989129862,-500.0,0.00022191,4]
[330077405,1718989129905,-543.29,0.00022191,4]
[330077406,1718989129949,-15219.17,0.00022191,4]
[330077407,1718989130001,-1338.96,0.00022191,4]
[330077408,1718989130042,-1349.53,0.00022191,4]
[330077409,1718989130082,-610.09,0.00022191,4]
[330077410,1718989130123,-998.95,0.00022191,4]
[330077411,1718989130163,-500.0,0.00022191,4]
[330077412,1718989130201,-500.0,0.00022191,4]
[330077413,1718989130243,-500.0,0.00022191,4]
[330077414,1718989130283,-761.55,0.00022191,4]
[330077415,1718989130322,-560.39,0.00022191,4]
[330077416,1718989130360,-500.0,0.00022191,4]
[330077417,1718989130398,-500.0,0.00022191,4]
[330077418,1718989130437,-2693.31,0.00022191,4]
[330077419,1718989130480,-500.0,0.00022191,4]
[330077420,1718989130518,-500.0,0.00022191,4]
[330077421,1718989130557,-710.94,0.00022191,4]
[330077422,1718989130597,-749.57,0.00022191,4]
[330077423,1718989130636,-1120.96,0.00022191,4]
[330077424,1718989130674,-500.0,0.00022191,4]
[330077425,1718989130714,-588.80003543,0.00022191,4]
[330077426,1718989130754,-1162.11,0.00022191,4]
[330077427,1718989130793,-500.0,0.00022191,4]
[330077428,1718989130831,-500.0,0.00022191,4]
[330077429,1718989130875,-500.0,0.00022191,4]
[330077430,1718989130916,-829.28,0.00022191,4]
[330077431,1718989130957,-3113.59,0.00022191,4]
[330077432,1718989130996,-1612.54,0.00022191,4]
[330077433,1718989131037,-500.0,0.00022191,4]
[330077434,1718989131076,-797.24,0.00022191,4]
[330077435,1718989131115,-500.0,0.00022191,4]
[330077436,1718989131151,-617.5,0.00022191,4]
[330077437,1718989131190,-500.0,0.00022191,4]
[330077438,1718989131230,-17782.52,0.00022191,4]
[330077439,1718989131268,-500.0,0.00022191,4]
[330077440,1718989131307,-836.32,0.00022191,4]
[330077441,1718989131347,-564.84,0.00022191,4]
[330077442,1718989131389,-1031.55,0.00022191,4]
[330077443,1718989131428,-500.0,0.00022191,4]
[330077444,1718989131469,-628.14,0.00022191,4]
[330077445,1718989131509,-500.0,0.00022191,4]
[330077446,1718989131548,-678.83,0.00022191,4]
[330077447,1718989131587,-1526.41,0.00022191,4]
[330077448,1718989131629,-500.0,0.00022191,4]
[330077449,1718989131671,-6327.26,0.00022191,4]
[330077450,1718989131716,-798.04,0.00022191,4]
[330077451,1718989131757,-1305.06,0.00022191,4]
[330077452,1718989131800,-6627.63,0.00022191,4]
[330077453,1718989131840,-735.75,0.00022191,4]
[330077454,1718989131889,-1004.85,0.00022191,4]
[330077455,1718989131932,-500.0,0.00022191,4]
[330077456,1718989131972,-500.0,0.00022191,4]
[330077457,1718989132014,-5698.04,0.00022191,4]
[330077458,1718989132056,-500.0,0.00022191,4]
[330077459,1718989132099,-7488.18,0.00022191,4]
[330077460,1718989132140,-1277.85,0.00022191,4]
[330077461,1718989132180,-3301.6,0.00022191,4]
[330077462,1718989132222,-1710.84,0.00022191,4]
[330077463,1718989132262,-500.0,0.00022191,4]
[330077464,1718989132304,-1936.6,0.00022191,4]
[330077465,1718989132345,-500.0,0.00022191,4]
[330077466,1718989132383,-811.25,0.00022191,4]
[330077467,1718989132423,-500.0,0.00022191,4]
[330077468,1718989132464,-500.0,0.00022191,4]
[330077469,1718989132504,-754.93,0.00022191,4]
[330077470,1718989132543,-5600.05,0.00022191,4]
[330077471,1718989132581,-826.67,0.00022191,4]
[330077472,1718989132622,-500.0,0.00022191,4]
[330077473,1718989132664,-888.88,0.00022191,4]
[330077474,1718989132702,-500.0,0.00022191,4]
[330077475,1718989132744,-1754.5,0.00022191,4]
[330077476,1718989132785,-595.79,0.00022191,4]
[330077477,1718989132825,-1644.95,0.00022191,4]
[330077478,1718989132866,-500.0,0.00022191,4]
[330077479,1718989132907,-738.1,0.00022191,4]
[330077480,1718989132952,-500.0,0.00022191,4]
[330077481,1718989132995,-474.27419342,0.00022191,4]
[330077482,1718989133035,-500.0,0.00022191,4]
[330077483,1718989133075,-1205.55,0.00022191,4]
[330077484,1718989133117,-973.12,0.00022191,4]
[330077485,1718989133157,-1597.69,0.00022191,4]
[330077486,1718989133197,-500.0,0.00022191,4]
[330077487,1718989133239,-2373.33,0.00022191,4]
[330077488,1718989133544,-500.0,0.00022191,4]
[330077489,1718989133589,-500.0,0.00022191,4]
[330077490,1718989133632,-500.0,0.00022191,2]
[330077491,1718989133674,-500.0,0.00022191,4]
[330077492,1718989133716,-521.5,0.00022191,7]
[330077493,1718989133758,-717.64,0.00022191,4]
[330077494,1718989133802,-500.0,0.00022191,4]
[330077495,1718989133848,-2133.14,0.00022191,4]
[330077496,1718989133892,-5729.69,0.00022191,4]
[330077497,1718989133936,-500.0,0.00022191,4]
[330077498,1718989133979,-522.35,0.00022191,4]
[330077499,1718989134020,-574.5,0.00022191,4]
[330077500,1718989134060,-610.9,0.00022191,4]
[330077501,1718989134103,-1312.03,0.00022191,4]
[330077502,1718989134145,-985.93,0.00022191,4]
[330077503,1718989134188,-500.0,0.00022191,4]
[330077504,1718989134231,-5127.76,0.00022191,4]
[330077505,1718989134274,-635.71,0.00022191,4]
[330077506,1718989134317,-500.0,0.00022191,4]
[330077507,1718989134361,-668.33,0.00022191,4]
[330077508,1718989134404,-500.0,0.00022191,4]
[330077509,1718989134448,-1140.36,0.00022191,4]
[330077510,1718989134493,-500.0,0.00022191,4]
[330077511,1718989134534,-167.29976472,0.00022191,4]
[330077512,1718989134575,-1185.18,0.00022191,4]
[330077513,1718989134620,-2279.84,0.00022191,4]
[330077514,1718989134672,-608.85,0.00022191,4]
[330077515,1718989134713,-3974.55,0.00022191,4]
[330077516,1718989134756,-1519.08,0.00022191,4]
[330077517,1718989134800,-548.21,0.00022191,4]
[330077518,1718989134845,-2138.7,0.00022191,4]
[330077519,1718989134893,-7738.33,0.00022191,4]
[330077520,1718989134936,-500.0,0.00022191,4]
[330077521,1718989134980,-1499.69,0.00022191,4]
[330077522,1718989135023,-2062.98,0.00022191,4]
[330077523,1718989135065,-500.0,0.00022191,4]
[330077524,1718989135108,-500.0,0.00022191,4]
[330077525,1718989135149,-273.25784413,0.00022191,4]
[330077526,1718989135190,-679.56,0.00022191,4]
[330077527,1718989135233,-3373.6,0.00022191,4]
[330077528,1718989135276,-500.0,0.00022191,4]
[330077529,1718989135318,-500.0,0.00022191,4]
[330077530,1718989135360,-1110.5,0.00022191,4]
[330077531,1718989135400,-1378.85,0.00022191,4]
[330077532,1718989135442,-852.13,0.00022191,4]
[330077533,1718989135489,-500.0,0.00022191,4]
[330077534,1718989135530,-801.39,0.00022191,4]
[330077535,1718989135571,-6808.95,0.00022191,4]
[330077536,1718989135615,-500.0,0.00022191,4]
[330077537,1718989135674,-500.0,0.00022191,4]
[330077538,1718989135717,-4502.87,0.00022191,4]
[330077539,1718989135760,-922.79,0.00022191,4]
[330077540,1718989135803,-780.77,0.00022191,4]
[330077541,1718989135846,-529.35,0.00022191,4]
[330077542,1718989135889,-500.0,0.00022191,4]
[330077543,1718989135930,-582.75,0.00022191,4]
[330077544,1718989135973,-500.0,0.00022191,4]
[330077545,1718989136015,-500.0,0.00022191,4]
[330077546,1718989136056,-500.0,0.00022191,4]
[330077547,1718989136095,-1314.08,0.00022191,4]
[330077548,1718989136138,-10013.26,0.00022191,4]
[330077549,1718989136184,-500.0,0.00022191,4]
[330077550,1718989136226,-900.38,0.00022191,4]
[330077551,1718989136264,-3165.23,0.00022191,4]
[330077552,1718989136313,-2038.4,0.00022191,4]
[330077553,1718989136355,-500.0,0.00022191,4]
[330077554,1718989136396,-500.0,0.00022191,4]
[330077555,1718989136439,-584.71,0.00022191,4]
[330077556,1718989136483,-563.5,0.00022191,4]
[330077557,1718989136535,-3628.25,0.00022191,4]
[330077558,1718989136582,-688.89,0.00022191,4]
[330077559,1718989136628,-500.0,0.00022191,4]
[330077560,1718989136675,-749.86,0.00022191,4]
[330077561,1718989136719,-847.05,0.00022191,4]
[330077562,1718989136763,-2002.5,0.00022191,4]
[330077563,1718989136810,-2430.06,0.00022191,4]
[330077564,1718989136855,-1269.72,0.00022191,4]
[330077565,1718989136902,-874.69,0.00022191,4]
[330077566,1718989136946,-500.0,0.00022191,4]
[330077567,1718989136993,-8189.97,0.00022191,4]
[330077568,1718989137039,-500.0,0.00022191,4]
[330077569,1718989137085,-1042.2,0.00022191,4]
[330077570,1718989137133,-2058.83,0.00022191,4]
[330077571,1718989137178,-2035.04,0.00022191,4]
[330077572,1718989137221,-627.19,0.00022191,4]
[330077573,1718989137264,-879.75,0.00022191,4]
[330077574,1718989137308,-500.0,0.00022191,4]
[330077575,1718989137349,-500.0,0.00022191,4]
[330077576,1718989137392,-588.19,0.00022191,4]
[330077577,1718989137437,-3185.38,0.00022191,4]
[330077578,1718989137480,-687.44,0.00022191,4]
[330077579,1718989137521,-2732.8,0.00022191,4]
[330077580,1718989137561,-2819.32,0.00022191,4]
[330077581,1718989137603,-500.0,0.00022191,4]
[330077582,1718989137646,-1597.02,0.00022191,4]
[330077583,1718989137685,-1019.06,0.00022191,4]
[330077584,1718989137725,-811.36,0.00022191,4]
[330077585,1718989137767,-717.66,0.00022191,4]
[330077586,1718989137810,-2334.7,0.00022191,4]
[330077587,1718989137853,-948.09,0.00022191,4]
[330077588,1718989137895,-1858.42,0.00022191,4]
[330077589,1718989137938,-3289.51,0.00022191,4]
[330077590,1718989137980,-3725.48,0.00022216,6]
[330077591,1718989138021,-15677.0633925,0.00022226,2]
[330077592,1718989138063,-11955.72139905,0.00022236,2]
[330077593,1718989138104,-11955.72139905,0.00022309,2]
[330077594,1718989138144,-439.91264972,0.00022365,2]
[330077595,1718989138184,-1811.92442982,0.00022365,2]
[330077596,1718989138225,-11955.72139905,0.00022382,2]
[330077597,1718989138266,-15677.0633925,0.00022444,2]
[330077598,1718989138308,-31354.1267849,0.00022454,2]
[330077599,1718989138350,-11955.72139905,0.00022454,2]
[330077600,1718989138391,-153.79,0.0002246,2]
[330077601,1718989138433,-688.56,0.00022464,4]
[330077602,1718989138474,-2068.75,0.00022464,4]
[330077603,1718989138518,-545.04,0.00022464,4]
[330077604,1718989138948,-1550.54,0.00022464,4]
[330077605,1718989138996,-1390.33,0.00022464,4]
[330077606,1718989139038,-743.19,0.00022464,4]
[330077607,1718989139080,-1807.21,0.00022464,4]
[330077608,1718989139121,-1166.46,0.00022464,4]
[330077609,1718989139160,-500.0,0.00022464,4]
[330077610,1718989139204,-399.50936921,0.00022464,4]
[330077611,1718989139251,-1231.82,0.00022464,4]
[330077612,1718989139292,-500.0,0.00022464,4]
[330077613,1718989139335,-1222.66,0.00022464,4]
[330077614,1718989139378,-2408.24,0.00022464,4]
[330077615,1718989139422,-1952.73,0.00022464,4]
[330077616,1718989139467,-731.2,0.00022464,4]
[330077617,1718989139509,-1318.44,0.00022464,4]
[330077618,1718989139551,-2384.38,0.00022464,4]
[330077619,1718989139595,-1865.15,0.00022464,4]
[330077620,1718989139636,-1273.61,0.00022464,4]
[330077621,1718989139678,-1573.02,0.00022464,4]
[330077622,1718989139720,-1161.26,0.00022464,4]
[330077623,1718989139760,-3686.48,0.00022464,4]
[330077624,1718989139800,-1568.43,0.00022464,4]
[330077625,1718989139843,-1484.44,0.00022464,4]
[330077626,1718989139890,-2169.49,0.00022464,4]
[330077627,1718989139933,-1666.27,0.00022464,4]
[330077628,1718989139973,-1593.7,0.00022464,4]
[330077629,1718989140014,-1100.83,0.00022464,4]
[330077630,1718989140058,-1904.12,0.00022464,4]
[330077631,1718989140099,-500.0,0.00022464,4]
[330077632,1718989140140,-2204.4,0.00022464,4]
[330077633,1718989140181,-4655.32,0.00022464,4]
[330077634,1718989140224,-784.36,0.00022464,4]
[330077635,1718989140265,-2198.64,0.00022464,4]
[330077636,1718989140307,-1493.84,0.00022464,4]
[330077637,1718989140350,-2311.6,0.00022464,4]
[330077638,1718989140394,-5650.13,0.00022464,4]
[330077639,1718989140436,-1180.22,0.00022464,4]
[330077640,1718989140477,-1102.65,0.00022464,4]
[330077641,1718989140518,-41618.06,0.00022464,4]
[330077642,1718989140560,-1809.3,0.00022464,4]
[330077643,1718989140605,-2172.22,0.00022464,4]
[330077644,1718989140648,-1370.5,0.00022464,4]
[330077645,1718989140690,-1892.1,0.00022464,4]
[330077646,1718989140739,-500.0,0.00022464,4]
[330077647,1718989140783,-1907.45,0.00022464,4]
[330077648,1718989140828,-1285.38,0.00022464,4]
[330077649,1718989140872,-2770.18,0.00022464,4]
[330077650,1718989140916,-827.57,0.00022464,4]
[330077651,1718989140966,-500.0,0.00022464,4]
[330077652,1718989141012,-2048.02,0.00022464,4]
[330077653,1718989141059,-1309.88,0.00022464,4]
[330077654,1718989141104,-10596.14,0.00022464,4]
[330077655,1718989141150,-2689.65,0.00022464,4]
[330077656,1718989141195,-1215.85,0.00022464,4]
[330077657,1718989141246,-1604.86,0.00022464,4]
[330077658,1718989141289,-5597.6,0.00022464,4]
[330077659,1718989141331,-1061.99,0.00022464,4]
[330077660,1718989141375,-500.0,0.00022464,4]
[330077661,1718989141418,-3307.05,0.00022464,4]